bitfinex/quotes_SOLUSD_20250704
["timestamp","ask_amount","ask_price","bid_price","bid_amount"]
[1751626159406,36.72881843,150.4,150.36,4.07966207]
[1751626160108,36.72881843,150.4,150.35,6.65099285]
[1751626160304,36.72881843,150.4,150.35,10.73065492]
[1751626161590,32.64915636,150.4,150.36,4.07966207]
[1751626161799,10.72828131,150.41,150.36,10.73019213]
[1751626162488,10.7270253,150.44,150.4,4.07966207]
[1751626162993,6.64736323,150.44,150.4,4.07966207]
[1751626163197,6.64736323,150.44,150.41,4.07966207]
[1751626164110,10.7270253,150.44,150.4,4.07966207]
[1751626164315,10.7270253,150.44,150.37,8.1674]
[1751626164316,4.07966207,150.43,150.38,6.64971305]
[1751626164611,4.07966207,150.43,150.39,4.07966207]
[1751626165212,4.07966207,150.43,150.38,6.64971305]
[1751626165404,4.07966207,150.43,150.39,4.07966207]
[1751626165598,4.07966207,150.43,150.37,14.81748564]
[1751626165599,6.64805212,150.42,150.37,14.81748564]
[1751626165795,6.64805212,150.42,150.37,8.24928564]
[1751626165997,6.64805212,150.42,150.38,4.07966207]
[1751626166192,10.72771419,150.42,150.38,4.07966207]
[1751626166509,10.72771419,150.42,150.37,5.67886207]
[1751626167110,4.07966207,150.41,150.37,5.67886207]
[1751626167923,6.6471683,150.44,150.39,4.07966207]
[1751626168218,10.72683037,150.44,150.4,4.07966207]
[1751626168415,4.07966207,150.43,150.39,4.07966207]
[1751626168592,6.6471683,150.44,150.38,4.07966207]
[1751626168793,4.07966207,150.42,150.38,4.07966207]
[1751626169218,4.07966207,150.42,150.38,10.72942464]
[1751626169634,10.72777784,150.42,150.37,8.24926858]
[1751626169820,10.72777784,150.42,150.38,4.07966207]
[1751626170000,4.07966207,150.4,150.35,13.49109968]
[1751626170319,4.07966207,150.38,150.35,6.84]
[1751626170925,49.26824607,150.42,150.35,6.84]
[1751626170926,4.07966207,150.37,150.35,6.84]
[1751626171306,10.72999947,150.37,150.35,6.84]
[1751626171837,13.02694144,150.37,150.35,6.84]
[1751626172720,6.37660404,150.37,150.35,6.84]
[1751626174723,6.65002602,150.38,150.35,6.84]
[1751626174931,6.37660404,150.37,150.35,6.84]
[1751626175134,6.37660404,150.37,150.34,0.1]
[1751626175323,6.37660404,150.36,150.34,0.1]
[1751626176246,6.37660404,150.35,150.34,0.1]
[1751626177936,13.02775136,150.35,150.34,0.1]
[1751626183741,13.027478,150.36,150.34,0.1]
[1751626183939,13.02690242,150.37,150.34,0.1]
[1751626184454,6.37660404,150.37,150.34,0.1]
[1751626185452,32.65001166,150.38,150.34,0.1]
[1751626185453,6.37660404,150.36,150.34,0.1]
[1751626186737,13.02752822,150.36,150.34,0.1]
[1751626187548,6.37660404,150.35,150.34,0.1]
[1751626189142,13.02775136,150.35,150.34,0.1]
[1751626196367,6.65114732,150.35,150.34,0.1]
[1751626196658,32.37660404,150.37,150.34,0.1]
[1751626196951,6.65041364,150.37,150.34,0.1]
[1751626197157,32.37660404,150.38,150.34,6.47660404]
[1751626197158,39.02654858,150.38,150.34,6.47660404]
[1751626199864,32.64994454,150.38,150.34,6.47660404]
[1751626200045,39.02654858,150.38,150.34,0.1]
[1751626200762,6.37660404,150.37,150.34,0.1]
[1751626201087,6.37660404,150.35,150.34,0.1]
[1751626201982,13.02775136,150.35,150.34,0.1]
[1751626204278,13.02750584,150.36,150.34,0.1]
[1751626204960,6.6509018,150.36,150.34,0.1]
[1751626205159,13.02750584,150.36,150.34,0.1]
[1751626208057,6.37660404,150.35,150.34,0.1]
[1751626208463,13.02775136,150.35,150.34,0.1]
[1751626213160,6.65114732,150.35,150.34,0.1]
[1751626213360,13.02775136,150.35,150.34,0.1]
[1751626213777,6.65114732,150.35,150.34,0.1]
[1751626216094,6.37660404,150.35,150.34,0.1]
[1751626218362,13.02775136,150.35,150.34,0.1]
[1751626218886,6.65114732,150.35,150.34,0.1]
[1751626222792,13.02775136,150.35,150.34,0.1]
[1751626225488,39.02775136,150.35,150.34,0.1]
[1751626232521,32.65114732,150.35,150.34,0.1]
[1751626232904,39.02775136,150.35,150.34,0.1]
[1751626234423,6.37660404,150.37,150.34,0.1]
[1751626234624,6.64982045,150.38,150.34,0.1]
[1751626234918,23.27437158,150.38,150.34,0.1]
[1751626235123,6.37660404,150.36,150.34,0.1]
[1751626235293,13.02740658,150.36,150.34,0.1]
[1751626235912,6.65080254,150.36,150.34,0.1]
[1751626236309,39.02698583,150.37,150.34,0.1]
[1751626237821,32.65038179,150.37,150.34,0.1]
[1751626239625,6.64994361,150.38,150.35,6.37660404]
[1751626239824,13.02654765,150.38,150.34,0.1]
[1751626240128,6.37660404,150.37,150.34,0.1]
[1751626241827,13.02654765,150.38,150.34,0.1]
[1751626242430,6.37660404,150.37,150.34,0.1]
[1751626243931,6.65070497,150.36,150.34,0.1]
[1751626251934,163.02453926,150.39,150.34,0.1]
[1751626251935,146.4,150.39,150.35,6.37660404]
[1751626252133,146.4,150.39,150.36,6.37660404]
[1751626252434,6.64893617,150.4,150.36,6.37660404]
[1751626253654,6.64893617,150.4,150.37,6.37660404]
[1751626257133,6.64893617,150.4,150.38,6.37660404]
[1751626259830,6.64893617,150.4,150.37,6.37660404]
[1751626260930,6.37660404,150.39,150.34,6.47660404]
[1751626261129,6.37660404,150.38,150.34,6.47660404]
[1751626261530,6.37660404,150.39,150.34,6.47660404]
[1751626262152,6.37660404,150.39,150.35,6.37660404]
[1751626262842,6.64982045,150.38,150.34,0.1]
[1751626263044,6.64982045,150.38,150.35,6.37660404]
[1751626264250,6.64958747,150.39,150.36,6.37660404]
[1751626264553,6.64914432,150.4,150.37,6.37660404]
[1751626264735,32.37660404,150.41,150.37,6.37660404]
[1751626264736,39.02526738,150.41,150.37,6.37660404]
[1751626266068,6.64824036,150.42,150.39,6.37660404]
[1751626267761,6.64824036,150.42,150.38,6.37660404]
[1751626268059,6.64824036,150.42,150.39,6.37660404]
[1751626274467,6.64824036,150.42,150.38,1.5371]
[1751626274777,6.64824036,150.42,150.39,6.37660404]
[1751626275948,6.64824036,150.42,150.38,1.5371]
[1751626276149,6.64824036,150.42,150.39,6.37660404]
[1751626276772,6.64824036,150.42,150.4,6.37660404]
[1751626277082,172.4,150.44,150.41,6.37660404]
[1751626277371,178.77660404,150.44,150.4,6.37660404]
[1751626277869,178.77660404,150.44,150.38,8.18689815]
[1751626278069,185.42397139,150.44,150.4,6.37660404]
[1751626278363,6.6468915,150.45,150.39,25.29902714]
[1751626278570,6.6468915,150.45,150.42,6.37660404]
[1751626279675,6.37660404,150.45,150.41,6.37660404]
[1751626281677,6.64628472,150.46,150.41,6.37660404]
[1751626281880,6.37660404,150.45,150.41,6.37660404]
[1751626282074,6.37660404,150.45,150.38,26.83645688]
[1751626282259,6.37660404,150.44,150.4,6.37660404]
[1751626282666,6.64628472,150.46,150.4,6.37660404]
[1751626282880,6.37660404,150.44,150.4,6.37660404]
[1751626283369,6.64761018,150.43,150.4,6.37660404]
[1751626286181,13.02421422,150.43,150.39,6.37660404]
[1751626287494,6.37660404,150.42,150.38,1.5371]
[1751626288490,6.64849411,150.41,150.38,1.5371]
[1751626289171,6.64849411,150.41,150.38,7.91370404]
[1751626289378,13.02441614,150.43,150.39,6.37660404]
[1751626289684,6.37660404,150.44,150.4,6.37660404]
[1751626291000,13.0240225,150.44,150.4,6.37660404]
[1751626291693,13.0240225,150.44,150.4,13.02553694]
[1751626292097,13.02351323,150.45,150.41,6.37660404]
[1751626295080,13.02351323,150.45,150.4,6.37660404]
[1751626299202,13.02351323,150.45,150.4,13.0254614]
[1751626301103,13.02351323,150.45,150.41,6.37660404]
[1751626301803,6.64690919,150.45,150.39,6.64937828]
[1751626302010,36.72323106,150.46,150.42,4.07674238]
[1751626303203,4.07674238,150.45,150.41,4.07674238]
[1751626306422,10.72383455,150.45,150.41,4.07674238]
[1751626306613,10.72383455,150.45,150.4,4.07674238]
[1751626307617,4.07674238,150.43,150.39,4.07674238]
[1751626309223,10.72460961,150.43,150.39,4.07674238]
[1751626309630,4.07674238,150.42,150.38,1.5371]
[1751626309933,4.07674238,150.4,150.37,6.84]
[1751626311644,10.72581838,150.4,150.37,6.84]
[1751626311925,13.02332626,150.4,150.37,6.84]
[1751626312936,6.37425026,150.39,150.37,6.84]
[1751626315714,6.37425026,150.4,150.37,6.84]
[1751626322335,13.02336784,150.4,150.37,6.84]
[1751626325752,6.37425026,150.41,150.37,6.84]
[1751626326549,6.37425026,150.4,150.37,6.84]
[1751626327937,13.02312018,150.41,150.37,13.21425026]
[1751626328249,13.02312018,150.41,150.37,6.84]
[1751626328930,13.02312018,150.41,150.37,13.21425026]
[1751626330047,13.02312018,150.41,150.37,6.84]
[1751626332053,13.02312018,150.41,150.37,13.21425026]
[1751626333767,10.7276388,150.41,150.37,10.91876888]
[1751626334265,10.7276388,150.41,150.37,17.56896049]
[1751626336939,10.7276388,150.41,150.37,13.49019161]
[1751626337140,10.7276388,150.41,150.37,17.56896049]
[1751626337565,10.7276388,150.41,150.37,10.91876888]
[1751626337765,4.07876888,150.4,150.37,6.84]
[1751626338163,10.7276388,150.41,150.37,10.91876888]
[1751626339757,10.7276388,150.41,150.37,17.56891152]
[1751626340075,4.07876888,150.43,150.39,5.66606888]
[1751626340274,10.72616198,150.44,150.4,4.07876888]
[1751626342076,10.72616198,150.44,150.39,1.5873]
[1751626342272,10.72616198,150.44,150.4,4.07876888]
[1751626342460,4.07876888,150.43,150.39,1.5873]
[1751626342661,4.07876888,150.41,150.37,10.91876888]
[1751626342976,4.07876888,150.39,150.37,6.84]
[1751626343177,4.07876888,150.39,150.35,30.98313635]
[1751626343476,4.07876888,150.37,150.34,6.94]
[1751626343669,4.07876888,150.36,150.34,6.94]
[1751626343878,6.37764146,150.36,150.34,6.94]
[1751626344083,6.37764146,150.35,150.34,6.94]
[1751626345781,13.02878878,150.35,150.34,6.94]
[1751626346680,13.02878878,150.35,150.34,0.1]
[1751626357697,16.62455113,150.38,150.34,0.1]
[1751626357870,6.37764146,150.35,150.34,0.1]
[1751626359873,13.02878878,150.35,150.33,1e-08]
[1751626360200,6.37764146,150.34,150.33,1e-08]
[1751626360686,6.37764146,150.34,150.31,0.1]
[1751626360687,26.0,150.32,150.31,0.1]
[1751626360879,44.92298292,150.32,150.3,0.1]
[1751626361078,6.37764146,150.31,150.3,0.1]
[1751626361816,13.03055876,150.31,150.3,0.1]
[1751626370907,6.6529173,150.31,150.3,0.1]
[1751626371214,26.0,150.28,150.22,19.36184971]
[1751626371397,6.65468822,150.27,150.22,19.36184971]
[1751626372221,6.37764146,150.26,150.22,6.3275]
[1751626372435,6.65468822,150.27,150.22,5.3275]
[1751626372596,6.37764146,150.24,150.22,5.3275]
[1751626373505,6.37764146,150.23,150.22,5.3275]
[1751626373796,6.37764146,150.23,150.16,20.06872391]
[1751626374001,6.37764146,150.2,150.16,20.06872391]
[1751626374208,6.37764146,150.2,150.16,26.44636537]
[1751626375233,23.29622562,150.24,150.17,18.64964886]
[1751626375408,26.0,150.25,150.17,18.64964886]
[1751626375409,32.37764146,150.25,150.2,6.37764146]
[1751626375602,6.37764146,150.24,150.2,6.37764146]
[1751626375923,146.4,150.27,150.23,6.37764146]
[1751626376120,146.4,150.27,150.24,6.37764146]
[1751626376324,6.37764146,150.28,150.24,6.37764146]
[1751626376515,6.37764146,150.28,150.23,8.02554146]
[1751626376913,6.37764146,150.27,150.23,8.02554146]
[1751626377116,6.65404453,150.29,150.23,14.68158209]
[1751626377517,6.37764146,150.27,150.23,14.68158209]
[1751626379840,6.37764146,150.27,150.23,8.30394063]
[1751626380507,6.37764146,150.27,150.23,14.68158209]
[1751626380706,6.65395111,150.29,150.23,14.68158209]
[1751626380906,6.37764146,150.29,150.25,6.37764146]
[1751626381520,6.37764146,150.29,150.24,6.37764146]
[1751626382136,6.37764146,150.28,150.24,13.03332473]
[1751626384233,6.37764146,150.29,150.24,13.03332473]
[1751626386211,13.03151839,150.29,150.24,13.03332473]
[1751626386640,6.37764146,150.29,150.24,13.03332473]
[1751626387536,13.03161114,150.29,150.24,6.65568327]
[1751626387740,6.37764146,150.28,150.24,6.65568327]
[1751626389239,6.37764146,150.28,150.24,13.03332473]
[1751626389736,6.65392158,150.29,150.24,13.03332473]
[1751626389941,6.37764146,150.28,150.24,13.03332473]
[1751626391234,6.37764146,150.28,150.24,6.65568327]
[1751626392740,13.03193583,150.28,150.24,6.65568327]
[1751626393139,6.37764146,150.27,150.23,14.68181071]
[1751626393442,6.37764146,150.26,150.22,25.30636694]
[1751626394024,6.37764146,150.26,150.22,6.65671808]
[1751626394231,6.37764146,150.24,150.2,13.03543107]
[1751626394434,6.37764146,150.24,150.2,6.65778961]
[1751626395029,6.37764146,150.24,150.2,13.03543107]
[1751626395921,16.63658514,150.28,150.2,6.37764146]
[1751626396121,16.63658514,150.28,150.19,26.96424571]
[1751626396122,6.65468822,150.27,150.21,6.37764146]
[1751626396321,6.37764146,150.27,150.22,13.03427961]
[1751626396529,6.37764146,150.27,150.23,6.37764146]
[1751626396839,6.37764146,150.28,150.24,6.37764146]
[1751626397032,6.37764146,150.29,150.24,6.37764146]
[1751626397229,6.37764146,150.3,150.25,6.37764146]
[1751626397935,6.37764146,150.29,150.25,6.37764146]
[1751626398330,6.37764146,150.29,150.25,13.03299253]
[1751626398933,6.65346209,150.3,150.25,13.03299253]
[1751626399135,6.37764146,150.29,150.25,13.03299253]
[1751626400022,153.05308319,150.31,150.25,13.03299253]
[1751626400224,6.37764146,150.3,150.26,6.37764146]
[1751626400655,6.37764146,150.31,150.27,6.37764146]
[1751626400950,6.37764146,150.3,150.26,6.37764146]
[1751626402030,32.65265308,150.32,150.26,6.37764146]
[1751626402227,6.37764146,150.3,150.26,6.37764146]
[1751626402432,6.37764146,150.29,150.25,13.03299253]
[1751626403639,6.65346822,150.3,150.25,13.03299253]
[1751626403953,6.37764146,150.3,150.26,6.37764146]
[1751626404758,32.37764146,150.31,150.26,6.37764146]
[1751626405059,39.03073713,150.31,150.26,13.03257279]
[1751626405771,6.37764146,150.3,150.25,6.65554308]
[1751626406057,6.37764146,150.3,150.25,13.03318454]
[1751626406549,39.03073713,150.31,150.26,6.37764146]
[1751626407131,6.37764146,150.3,150.26,13.03255328]
[1751626409032,32.37764146,150.31,150.26,13.03255328]
[1751626410433,6.37764146,150.34,150.29,6.37764146]
[1751626410632,6.37764146,150.34,150.3,6.37764146]
[1751626410962,6.37764146,150.35,150.3,6.37764146]
[1751626411875,6.37764146,150.35,150.31,6.6529173]
[1751626412073,6.37764146,150.34,150.31,6.6529173]
[1751626412659,6.37764146,150.35,150.31,6.6529173]
[1751626412984,6.37764146,150.35,150.3,13.03085132]
[1751626413546,6.85084028,150.36,150.3,13.03085132]
[1751626413750,13.22848174,150.36,150.31,13.03014814]
[1751626419460,13.22848174,150.36,150.3,25.3030088]
[1751626419764,6.37764146,150.35,150.31,6.37764146]
[1751626420656,6.37764146,150.35,150.3,13.0310014]
[1751626420657,13.02880311,150.35,150.3,13.0310014]
[1751626421460,6.37764146,150.35,150.3,13.0310014]
[1751626421664,6.37764146,150.35,150.31,6.37764146]
[1751626422555,6.37764146,150.35,150.31,13.0305374]
[1751626423264,13.02880543,150.35,150.31,13.0305374]
[1751626424054,13.02880543,150.35,150.3,13.03084406]
[1751626436974,6.37764146,150.34,150.3,13.03084406]
[1751626437185,6.37764146,150.33,150.29,14.66773415]
[1751626437683,13.02925142,150.34,150.29,14.66773415]
[1751626440358,6.37764146,150.34,150.29,14.66773415]
[1751626441889,6.37764146,150.33,150.29,14.66773415]
[1751626443374,13.02953172,150.34,150.29,14.66773415]
[1751626444288,13.02953172,150.34,150.29,8.29009269]
[1751626444586,13.02953172,150.34,150.29,14.66773415]
[1751626445384,6.37764146,150.33,150.29,1.6365]
[1751626445580,6.37764146,150.33,150.23,6.92]
[1751626445581,6.37764146,150.3,150.25,26.66859032]
[1751626445979,6.37764146,150.29,150.25,26.66859032]
[1751626446786,6.37764146,150.3,150.25,33.32399898]
[1751626446994,6.37764146,150.3,150.26,6.37764146]
[1751626448189,6.37764146,150.3,150.26,13.03239594]
[1751626449187,6.65337957,150.3,150.26,6.37764146]
[1751626449389,13.03102103,150.3,150.26,6.37764146]
[1751626450199,6.37764146,150.3,150.26,13.03264896]
[1751626450782,13.03108098,150.3,150.26,13.03264896]
[1751626450989,6.37764146,150.29,150.25,31.6827467]
[1751626454591,6.37764146,150.3,150.25,31.6827467]
[1751626456099,6.37764146,150.3,150.26,6.37764146]
[1751626457888,13.03119863,150.3,150.25,13.03309784]
[1751626459199,6.37764146,150.29,150.25,13.03309784]
[1751626460802,6.37764146,150.3,150.26,13.03257814]
[1751626460995,6.37764146,150.3,150.26,6.65493668]
[1751626461182,6.37764146,150.3,150.26,13.03257814]
[1751626462006,26.0,150.33,150.28,6.37764146]
[1751626462007,32.65221153,150.33,150.28,6.37764146]
[1751626462203,6.37764146,150.32,150.28,6.37764146]
[1751626462703,32.37764146,150.33,150.27,18.64964886]
[1751626462997,39.02973933,150.33,150.29,6.37764146]
[1751626463214,39.02973933,150.33,150.29,13.03141097]
[1751626463504,38.50810979,150.33,150.29,13.03141097]
[1751626463703,31.85601192,150.33,150.29,13.03141097]
[1751626463995,25.47837046,150.33,150.29,13.03141097]
[1751626464499,6.37764146,150.34,150.3,6.37764146]
[1751626465011,6.85100724,150.36,150.31,6.37764146]
[1751626465299,6.57764146,150.36,150.32,6.37764146]
[1751626466506,13.22840963,150.36,150.31,6.37764146]
[1751626467203,13.22840963,150.36,150.31,13.03038403]
[1751626468008,13.22840963,150.36,150.31,6.37764146]
[1751626468180,6.37764146,150.35,150.28,22.92901465]
[1751626468505,6.37764146,150.35,150.3,6.37764146]
[1751626468884,6.37764146,150.34,150.3,6.37764146]
[1751626470709,13.02879753,150.35,150.31,6.37764146]
[1751626471222,6.65115607,150.35,150.31,6.37764146]
[1751626471687,13.22843796,150.36,150.31,6.37764146]
[1751626471892,13.22843796,150.36,150.32,6.37764146]
[1751626472387,13.22843796,150.36,150.31,6.37764146]
[1751626472590,6.37764146,150.35,150.31,6.37764146]
[1751626472914,0.2,150.36,150.31,13.03051081]
[1751626473098,6.37764146,150.35,150.31,13.03051081]
[1751626473489,6.37764146,150.35,150.31,6.65286935]
[1751626473708,6.37764146,150.35,150.31,13.03051081]
[1751626474312,13.02879569,150.35,150.31,13.03051081]
[1751626477511,13.02879569,150.35,150.31,6.37764146]
[1751626478113,13.02879569,150.35,150.3,6.37764146]
[1751626478296,6.37764146,150.33,150.29,6.65380264]
[1751626478500,6.37764146,150.32,150.28,13.03179686]
[1751626479600,6.37764146,150.31,150.27,13.03226275]
[1751626481420,13.03070005,150.31,150.27,6.37764146]
[1751626481594,6.37764146,150.3,150.26,14.58278766]
[1751626485028,6.37764146,150.3,150.26,7.92774146]
[1751626487229,13.03103395,150.3,150.26,7.92774146]
[1751626487428,13.03103395,150.3,150.26,14.58278462]
[1751626488826,6.37764146,150.3,150.26,14.58278462]
[1751626489828,4.08462161,150.3,150.26,12.28976477]
[1751626491130,10.73799233,150.3,150.26,12.28976477]
[1751626491432,4.08462161,150.3,150.26,12.28976477]
[1751626492107,10.73805869,150.3,150.26,12.28976477]
[1751626493627,4.08462161,150.3,150.26,12.28976477]
[1751626494236,36.73774395,150.31,150.27,4.08462161]
[1751626496815,30.08462161,150.31,150.27,10.73908975]
[1751626498921,6.65220466,150.33,150.29,4.08462161]
[1751626499116,36.73682627,150.33,150.29,4.08462161]
[1751626499317,4.08462161,150.32,150.28,4.08462161]
[1751626500139,10.73722451,150.32,150.28,4.08462161]
[1751626503246,4.08462161,150.31,150.26,8.20502992]
[1751626503447,4.08462161,150.31,150.27,4.08462161]
[1751626505052,10.73784154,150.31,150.27,4.08462161]
[1751626506535,6.65321993,150.31,150.27,4.08462161]
[1751626507045,10.73728915,150.32,150.28,4.08462161]
[1751626507349,10.73728915,150.32,150.27,6.65459248]
[1751626507551,10.73728915,150.32,150.28,4.08462161]
[1751626507849,30.08462161,150.33,150.29,4.08462161]
[1751626508053,4.08462161,150.35,150.3,4.08462161]
[1751626508352,4.28462161,150.36,150.32,4.08462161]
[1751626509049,10.93550245,150.36,150.32,4.08462161]
[1751626509834,10.93550245,150.36,150.31,4.08462161]
[1751626510838,10.93550245,150.36,150.32,4.08462161]
[1751626514053,4.08462161,150.35,150.31,4.08462161]
[1751626514960,10.7358975,150.35,150.31,4.08462161]
[1751626519967,10.7358975,150.35,150.3,26.80603128]
[1751626520190,10.7358975,150.35,150.31,4.08462161]
[1751626520673,10.7358975,150.35,150.3,20.15284886]
[1751626520859,10.7358975,150.35,150.31,4.08462161]
[1751626521058,4.08462161,150.34,150.3,5.58782161]
[1751626521939,6.65203219,150.33,150.3,5.58782161]
[1751626522166,10.7366538,150.33,150.3,1.5032]
[1751626522746,4.08462161,150.31,150.29,6.86]
[1751626522946,4.08462161,150.3,150.29,6.86]
[1751626523346,4.08462161,150.31,150.29,6.86]
[1751626523762,4.08462161,150.32,150.29,6.86]
[1751626523943,10.73727553,150.32,150.29,6.86]
[1751626524160,36.73727553,150.32,150.29,6.86]
[1751626527775,26.0,150.34,150.29,17.59832869]
[1751626528077,4.08462161,150.34,150.29,10.94462161]
[1751626528371,4.08462161,150.33,150.29,10.94462161]
[1751626529976,4.08462161,150.33,150.29,17.5983598]
[1751626530574,10.73677127,150.33,150.29,17.5983598]
[1751626530874,6.65214966,150.33,150.29,17.5983598]
[1751626531076,10.73677127,150.33,150.29,10.94462161]
[1751626531276,4.08462161,150.32,150.29,6.86]
[1751626531579,6.65214966,150.33,150.29,6.86]
[1751626531762,4.08462161,150.31,150.29,6.86]
[1751626532166,10.73771497,150.31,150.27,4.08462161]
[1751626534357,10.73771497,150.31,150.27,10.73915975]
[1751626535693,10.73771497,150.31,150.27,4.08462161]
[1751626535860,4.08462161,150.3,150.26,12.26793654]
[1751626536060,10.73771497,150.31,150.27,4.08462161]
[1751626538481,10.73771497,150.31,150.27,10.73919026]
[1751626538654,10.73771497,150.31,150.27,4.08462161]
[1751626544488,4.08462161,150.3,150.25,25.50964886]
[1751626544676,4.08462161,150.28,150.25,6.86]
[1751626544876,4.08462161,150.27,150.25,6.86]
[1751626546491,4.08462161,150.26,150.24,0.1]
[1751626546688,4.08462161,150.25,150.24,0.1]
[1751626546875,30.08462161,150.25,150.24,0.1]
[1751626547068,46.42310805,150.25,150.24,0.1]
[1751626547575,30.08462161,150.25,150.24,0.1]
[1751626548401,36.74019565,150.25,150.24,0.1]
[1751626549587,4.08462161,150.25,150.24,0.1]
[1751626549785,6.38652599,150.25,150.24,0.1]
[1751626550881,6.65468822,150.27,150.24,0.1]
[1751626551086,6.38652599,150.25,150.24,0.1]
[1751626551285,6.65468822,150.27,150.24,0.1]
[1751626551485,6.38652599,150.25,150.24,0.1]
[1751626551693,6.38652599,150.26,150.24,0.1]
[1751626552704,13.04121421,150.27,150.24,0.1]
[1751626552894,39.04082504,150.28,150.24,6.48652599]
[1751626553300,26.0,150.28,150.24,13.14238506]
[1751626553681,26.0,150.28,150.25,6.38652599]
[1751626553886,13.0404255,150.29,150.25,6.38652599]
[1751626554087,6.38652599,150.29,150.24,6.75585907]
[1751626554288,6.38652599,150.29,150.25,6.38652599]
[1751626554490,6.65296354,150.31,150.25,6.38652599]
[1751626554789,26.0,150.3,150.27,6.38652599]
[1751626556408,32.65337685,150.3,150.27,6.38652599]
[1751626557012,26.0,150.3,150.27,6.38652599]
[1751626557502,26.0,150.3,150.26,6.65488094]
[1751626557802,13.03919816,150.32,150.28,6.38652599]
[1751626558004,6.65267217,150.32,150.28,6.38652599]
[1751626559614,13.03919816,150.32,150.28,6.38652599]
[1751626562914,13.03919816,150.32,150.27,6.65438353]
[1751626562915,6.65267217,150.32,150.29,6.38652599]
[1751626563818,13.03919816,150.32,150.28,6.38652599]
[1751626564619,6.65267217,150.32,150.28,6.38652599]
[1751626564996,13.03919816,150.32,150.28,6.38652599]
[1751626569022,13.03919816,150.32,150.27,13.04090952]
[1751626569798,13.03919816,150.32,150.27,6.65438353]
[1751626570002,6.38652599,150.3,150.26,1.5107]
[1751626570299,6.38652599,150.27,150.25,6.86]
[1751626570506,6.38652599,150.26,150.25,6.86]
[1751626570721,6.38652599,150.27,150.25,6.86]
[1751626573621,13.04130415,150.27,150.25,6.86]
[1751626574811,6.38652599,150.26,150.25,6.86]
[1751626575217,6.65477816,150.27,150.25,6.86]
[1751626575419,6.38652599,150.26,150.25,6.86]
[1751626575838,13.04165709,150.26,150.25,6.86]
[1751626576123,13.04165709,150.26,150.24,0.1]
[1751626576332,6.38652599,150.25,150.24,0.1]
[1751626577815,13.04210003,150.25,150.24,0.1]
[1751626581504,6.65557404,150.25,150.24,0.1]
[1751626581826,13.04210003,150.25,150.24,0.1]
[1751626583525,32.65528846,150.26,150.24,0.1]
[1751626583829,6.38652599,150.25,150.24,0.1]
[1751626586844,13.04210003,150.25,150.24,0.1]
[1751626587762,6.65557404,150.25,150.24,0.1]
[1751626587912,39.04185379,150.26,150.24,0.1]
[1751626588722,6.38652599,150.25,150.24,0.1]
[1751626589213,39.04185379,150.26,150.24,0.1]
[1751626596649,32.6553278,150.26,150.24,0.1]
[1751626596937,6.65441629,150.28,150.25,6.38652599]
[1751626597519,6.65441629,150.28,150.24,6.48652599]
[1751626597728,6.65441629,150.28,150.24,6.75598642]
[1751626597941,6.65441629,150.28,150.24,13.14251241]
[1751626598243,6.65441629,150.28,150.24,6.48652599]
[1751626598939,13.04094228,150.28,150.24,6.48652599]
[1751626599140,6.38652599,150.27,150.24,0.1]
[1751626599850,6.38652599,150.25,150.24,0.1]
[1751626600023,13.04210003,150.25,150.24,0.1]
[1751626600550,6.65557404,150.25,150.24,0.1]
[1751626600748,13.04210003,150.25,150.24,0.1]
[1751626603450,6.65557404,150.25,150.24,0.1]
[1751626603624,13.04210003,150.25,150.24,0.1]
[1751626607736,6.65557404,150.25,150.24,0.1]
[1751626607937,13.04210003,150.25,150.24,0.1]
[1751626610856,6.65557404,150.25,150.24,0.1]
[1751626611053,13.04210003,150.25,150.24,0.1]
[1751626615248,6.65557404,150.25,150.24,0.1]
[1751626615546,13.04210003,150.25,150.24,0.1]
[1751626622892,26.0,150.22,150.21,0.1]
[1751626623065,32.38652599,150.22,150.21,0.1]
[1751626624166,39.04342919,150.22,150.21,0.1]
[1751626625172,32.6569032,150.22,150.21,0.1]
[1751626625379,39.04342919,150.22,150.21,0.1]
[1751626633686,32.6569032,150.22,150.21,0.1]
[1751626634069,39.04342919,150.22,150.21,0.1]
[1751626634386,32.6569032,150.22,150.21,0.1]
[1751626634587,39.04342919,150.22,150.21,0.1]
[1751626639589,57.69307805,150.22,150.2,0.1]
[1751626639792,6.38652599,150.21,150.2,0.1]
[1751626640488,31.69352123,150.21,150.2,1e-08]
[1751626641275,178.09352123,150.21,150.2,1e-08]
[1751626643794,171.70699524,150.21,150.2,1e-08]
[1751626643980,178.09352123,150.21,150.2,1e-08]
[1751626647606,153.05734638,150.21,150.2,1e-08]
[1751626647788,159.44387237,150.21,150.2,1e-08]